bitfinex/quotes_BTCUSD_20251217
["timestamp","ask_amount","ask_price","bid_price","bid_amount"]
[1765996890330,0.05322231,86329.0,86298.0,0.0184]
[1765996890331,1.0,86321.0,86298.0,0.0184]
[1765996890546,1.0,86310.0,86290.0,0.51919]
[1765996890762,0.001,86311.0,86290.0,0.51919]
[1765996890763,0.48818,86311.0,86290.0,0.0184]
[1765996891035,1.0,86308.0,86290.0,0.03055063]
[1765996891291,1.0,86308.0,86290.0,0.51294063]
[1765996891292,1.0,86307.0,86290.0,0.51294063]
[1765996891522,0.00161287,86307.0,86291.0,0.59858]
[1765996891754,0.00161287,86307.0,86293.0,0.50079]
[1765996891971,0.00161287,86307.0,86294.0,0.05129406]
[1765996892192,0.05769341,86335.0,86294.0,0.05129406]
[1765996892193,0.001,86308.0,86294.0,0.00161]
[1765996893527,1.0,86320.0,86294.0,0.00161]
[1765996893732,1.22343,86319.0,86294.0,0.00161]
[1765996893934,0.48818,86315.0,86294.0,0.00161]
[1765996894294,0.48818,86315.0,86294.0,0.00261]
[1765996894518,0.73525,86315.0,86294.0,0.00261]
[1765996894721,0.03482583,86325.0,86294.0,0.00261]
[1765996894722,0.03482583,86325.0,86296.0,0.01158802]
[1765996894929,0.03482583,86325.0,86295.0,0.10491054]
[1765996894930,0.001,86319.0,86311.0,0.0907]
[1765996895129,0.73525,86354.0,86313.0,0.05001839]
[1765996895130,1.0,86353.0,86313.0,0.05001839]
[1765996895297,1.0,86353.0,86321.0,0.18479466]
[1765996895502,1.0,86351.0,86322.0,0.17321]
[1765996895708,1.0,86351.0,86317.0,0.0115852]
[1765996895709,0.48818,86388.0,86333.0,0.01158305]
[1765996895910,1.0,86373.0,86344.0,0.17321]
[1765996896118,1.0,86373.0,86334.0,0.0322995]
[1765996896119,1.0,86373.0,86346.0,0.17321]
[1765996896323,1.0,86371.0,86347.0,0.0184]
[1765996896785,1.0,86383.0,86351.0,0.11764]
[1765996897088,1.0,86381.0,86352.0,0.11546078]
[1765996897300,0.0184,86384.0,86323.0,0.01158439]
[1765996897301,0.0907,86379.0,86323.0,0.01158439]
[1765996897495,1.0,86370.0,86331.0,0.0907]
[1765996897697,1.0,86370.0,86330.0,1.04813189]
[1765996897698,0.0184,86369.0,86332.0,0.11546078]
[1765996897904,0.0907,86364.0,86332.0,0.11546078]
[1765996898298,0.0907,86364.0,86335.0,0.07411868]
[1765996898513,1.0,86363.0,86336.0,0.0184]
[1765996898695,0.57888,86359.0,86336.0,0.0184]
[1765996898904,0.0907,86355.0,86337.0,0.11693438]
[1765996899046,0.0907,86355.0,86338.0,0.01353344]
[1765996899047,0.00161287,86355.0,86338.0,0.01353344]
[1765996899243,2.87e-06,86355.0,86338.0,0.00161]
[1765996899863,2.87e-06,86355.0,86331.0,0.07411868]
[1765996899864,0.0907,86348.0,86301.0,0.01158735]
[1765996900075,0.73525,86349.0,86304.0,0.23173744]
[1765996900076,1.0,86345.0,86304.0,0.23173744]
[1765996900276,1.0,86345.0,86302.0,0.02998721]
[1765996900488,1.0,86345.0,86303.0,0.11546078]
[1765996900688,1.0,86345.0,86309.0,0.01158627]
[1765996900895,0.07411868,86352.0,86316.0,0.02463]
[1765996901097,1.0,86347.0,86319.0,0.02463]
[1765996901317,1.0,86347.0,86318.0,0.02463]
[1765996901521,1.0,86351.0,86323.0,0.02463]
[1765996901726,0.07411868,86352.0,86320.0,1.05971669]
[1765996901727,0.003,86345.0,86320.0,1.05971669]
[1765996902082,0.003,86345.0,86321.0,0.01158466]
[1765996902083,0.00461,86345.0,86321.0,0.01158466]
[1765996902224,0.00461,86345.0,86319.0,0.05527918]
[1765996902453,0.00461,86345.0,86317.0,0.0184]
[1765996902814,0.00161,86345.0,86317.0,0.0184]
[1765996903146,0.00134901,86333.0,86317.0,0.0184]
[1765996903503,1.0,86356.0,86325.0,0.07411868]
[1765996903698,1.0,86360.0,86326.0,0.0118]
[1765996903909,1.0,86364.0,86328.0,0.0118]
[1765996904098,1.0,86364.0,86320.0,1.04813189]
[1765996904099,1.0,86327.0,86292.0,0.0118]
[1765996904322,1.0,86327.0,86285.0,0.00531625]
[1765996904323,1.0,86327.0,86300.0,0.0118]
[1765996904538,1.0,86332.0,86301.0,0.0907]
[1765996904691,0.07411868,86341.0,86301.0,0.09231]
[1765996904896,1.0,86340.0,86301.0,0.10389735]
[1765996905102,0.07875292,86308.0,86302.0,0.11546078]
[1765996905312,0.07875292,86308.0,86307.0,0.00161]
[1765996905505,0.07875292,86324.0,86307.0,0.00161]
[1765996906158,0.07875292,86308.0,86307.0,0.00161]
[1765996906336,0.07875292,86308.0,86307.0,0.02005]
[1765996906541,0.07875292,86308.0,86307.0,0.04267108]
[1765996906748,0.07875292,86324.0,86307.0,0.04267108]
[1765996906950,0.07875292,86311.0,86308.0,0.01390369]
[1765996907200,0.07875292,86324.0,86307.0,0.04267108]
[1765996907201,0.07875292,86324.0,86310.0,0.00161]
[1765996907595,0.07875292,86324.0,86310.0,0.01319614]
[1765996907835,0.07875292,86324.0,86311.0,0.01006033]
[1765996908026,0.07875292,86324.0,86310.0,0.00161]
[1765996908232,0.07875292,86324.0,86312.0,0.01844]
[1765996908466,0.07875292,86324.0,86312.0,0.00161]
[1765996908695,0.07875292,86324.0,86313.0,0.01844]
[1765996909227,0.07875292,86324.0,86313.0,0.02005]
[1765996909859,0.07875292,86324.0,86313.0,0.00261]
[1765996910063,0.07875292,86324.0,86314.0,0.01844]
[1765996910268,0.07875292,86324.0,86314.0,0.01968954]
[1765996911252,0.07875292,86324.0,86314.0,0.01933504]
[1765996912169,0.07875292,86324.0,86314.0,0.01996372]
[1765996912395,0.07875292,86324.0,86314.0,0.01896372]
[1765996912801,0.07875292,86324.0,86314.0,0.01996372]
[1765996913159,0.07875292,86324.0,86314.0,0.01896372]
[1765996913376,0.07875292,86324.0,86314.0,0.0186147]
[1765996913582,0.07875292,86324.0,86314.0,0.0196147]
[1765996914263,0.07875292,86324.0,86314.0,0.01826477]
[1765996914467,0.07875292,86324.0,86314.0,0.00161]
[1765996914671,0.07875292,86324.0,86323.0,0.00080631]
[1765996915208,0.07875292,86324.0,86323.0,0.00204742]
[1765996915631,0.07875292,86324.0,86323.0,0.00043742]
[1765996915843,0.07875292,86324.0,86323.0,0.01887742]
[1765996916019,0.07875292,86324.0,86300.0,0.01158748]
[1765996916020,0.07875292,86324.0,86301.0,0.00043]
[1765996916420,0.07875292,86311.0,86303.0,0.00043]
[1765996916627,0.07875292,86324.0,86304.0,0.00043]
[1765996916824,0.07831292,86324.0,86323.0,0.001]
[1765996917041,0.07831292,86324.0,86304.0,0.00161]
[1765996917170,0.08340718,86308.0,86304.0,0.00161]
[1765996917354,0.08340718,86308.0,86305.0,0.07164234]
[1765996917571,0.08340718,86308.0,86304.0,0.00161]
[1765996917771,0.01844,86321.0,86304.0,0.00161]
[1765996918021,0.01844,86321.0,86305.0,0.24332303]
[1765996918226,0.01844,86321.0,86307.0,0.01158654]
[1765996918423,0.01844,86321.0,86308.0,0.05114277]
[1765996918889,0.01844,86321.0,86308.0,0.00161]
[1765996919513,0.01844,86321.0,86308.0,0.00261]
[1765996920378,0.01844,86321.0,86308.0,0.24492248]
[1765996920579,0.01844,86321.0,86310.0,0.71481345]
[1765996920796,0.00099999,86380.0,86318.0,0.23169919]
[1765996920797,0.0907,86342.0,86318.0,0.23169919]
[1765996920994,0.08340718,86327.0,86320.0,0.71481345]
[1765996921197,0.08340718,86327.0,86320.0,0.71642345]
[1765996921672,0.08340718,86327.0,86320.0,0.00161]
[1765996922028,0.00051905,86324.0,86320.0,0.00161]
[1765996922854,0.00051905,86324.0,86315.0,0.00025545]
[1765996923176,0.01844,86323.0,86315.0,0.00025545]
[1765996924106,0.50348,86318.0,86292.0,0.00199]
[1765996924311,0.50348,86316.0,86292.0,0.00199]
[1765996924722,0.01844,86323.0,86292.0,0.00161]
[1765996924723,0.0907,86315.0,86292.0,0.00161]
[1765996924930,0.0907,86321.0,86300.0,0.00225]
[1765996925144,0.0907,86321.0,86292.0,0.00161]
[1765996925145,0.07914718,86301.0,86292.0,0.00161]
[1765996925533,0.07914718,86301.0,86293.0,0.07164234]
[1765996925675,0.07914718,86301.0,86292.0,0.00161]
[1765996926317,0.07914718,86301.0,86292.0,0.00261]
[1765996926518,0.07914718,86301.0,86292.0,0.00161]
[1765996927807,0.08340718,86300.0,86292.0,0.00161]
[1765996928294,0.01844,86306.0,86292.0,0.00161]
[1765996928498,0.01844,86306.0,86293.0,0.07396016]
[1765996928671,0.01844,86306.0,86293.0,0.07557016]
[1765996929320,0.08340718,86301.0,86293.0,0.07557016]
[1765996929774,0.08340718,86301.0,86293.0,0.00161]
[1765996930616,0.08340718,86301.0,86300.0,0.00047902]
[1765996931818,0.08340718,86301.0,86300.0,0.00012654]
[1765996932066,0.01844,86306.0,86300.0,0.00012654]
[1765996932270,0.01844,86306.0,86300.0,0.00161]
[1765996932719,0.01844,86306.0,86290.0,0.71481345]
[1765996932950,0.01844,86306.0,86247.0,0.10349889]
[1765996932951,0.08340718,86297.0,86291.0,0.07317191]
[1765996933196,0.08340718,86297.0,86282.0,0.0115899]
[1765996933390,0.08340718,86297.0,86280.0,0.71481345]
[1765996933601,0.07910324,86297.0,86280.0,0.71481345]
[1765996933809,0.07910324,86297.0,86285.0,0.00496294]
[1765996934851,0.07910324,86297.0,86287.0,0.71481345]
[1765996935057,0.01844,86306.0,86288.0,0.09515712]
[1765996935261,0.01844,86306.0,86288.0,0.33852792]
[1765996935470,0.001,86297.0,86288.0,0.09515712]
[1765996935683,0.01844,86306.0,86289.0,0.01158896]
[1765996935889,0.0059787,86313.0,86290.0,0.09660085]
[1765996936092,0.01844,86312.0,86290.0,0.08501203]
[1765996936298,0.01844,86312.0,86287.0,0.001]
[1765996936299,0.02005287,86312.0,86287.0,0.001]
[1765996936530,0.02005287,86312.0,86282.0,0.0300299]
[1765996936733,0.02005287,86312.0,86283.0,0.01158976]
[1765996936943,0.02005287,86312.0,86284.0,0.2317902]
[1765996937147,0.02005287,86312.0,86282.0,0.01844]
[1765996937355,0.02005287,86312.0,86283.0,0.01158976]
[1765996937558,0.08340718,86309.0,86291.0,0.05001839]
[1765996937836,0.08340718,86309.0,86285.0,0.02340294]
[1765996937837,0.08502005,86309.0,86285.0,0.02340294]
[1765996938061,0.08502005,86309.0,86285.0,0.00496294]
[1765996938259,0.08502005,86309.0,86286.0,0.11546078]
[1765996938588,0.08502005,86309.0,86290.0,0.01158882]
[1765996938718,0.08502005,86309.0,86290.0,0.71523298]
[1765996938926,0.08702005,86309.0,86290.0,0.71523298]
[1765996939130,0.08502005,86309.0,86290.0,0.71523298]
[1765996939355,0.08502005,86309.0,86291.0,0.08588356]
[1765996939513,0.08702005,86309.0,86291.0,0.08588356]
[1765996939734,0.08502005,86309.0,86291.0,0.08588356]
[1765996940393,0.00161287,86309.0,86292.0,0.24335954]
[1765996940593,0.00161287,86309.0,86291.0,0.08588356]
[1765996940817,0.00161287,86309.0,86292.0,0.07982865]
[1765996941238,0.00261287,86309.0,86292.0,0.07982865]
[1765996941437,0.00161287,86309.0,86290.0,0.71523298]
[1765996941642,0.00161287,86309.0,86290.0,0.01844]
[1765996941993,0.00161287,86309.0,86285.0,0.00496294]
[1765996941994,0.08340718,86308.0,86285.0,0.00496294]
[1765996942197,0.52459,86302.0,86285.0,0.00496294]
[1765996942400,0.01844,86301.0,86285.0,0.00496294]
[1765996942790,0.01883268,86301.0,86296.0,0.0002543]
[1765996944171,0.01844,86300.0,86296.0,0.0002543]
[1765996944377,5.55e-06,86309.0,86297.0,0.01915]
[1765996944578,0.002,86301.0,86297.0,0.02075732]
[1765996944760,0.02044,86301.0,86297.0,0.02075732]
[1765996944956,0.01844,86301.0,86297.0,0.02075732]
[1765996945205,0.02044,86301.0,86297.0,0.00160732]
[1765996945634,0.01844,86301.0,86297.0,0.00160732]
[1765996945840,0.01944,86301.0,86297.0,0.00160732]
[1765996946012,0.001,86301.0,86297.0,0.00160732]
[1765996946781,0.69285,86330.0,86296.0,0.0002543]
[1765996946782,0.01844,86316.0,86301.0,0.01158735]
[1765996946983,0.01844,86324.0,86307.0,0.17989]
[1765996947189,0.01844,86329.0,86307.0,0.18150287]
[1765996947388,0.01844,86329.0,86308.0,0.1612]
[1765996947601,0.01844,86329.0,86308.0,0.16281287]
[1765996947781,0.01844,86334.0,86310.0,0.14276]
[1765996948026,1.0,86333.0,86310.0,0.14437287]
[1765996948253,0.77281903,86334.0,86310.0,0.14400704]
[1765996948458,0.002,86329.0,86310.0,0.14400704]
[1765996948669,0.01844,86335.0,86311.0,0.01602883]
[1765996948881,1.0,86332.0,86310.0,0.00161287]
[1765996949296,0.0907,86333.0,86310.0,0.00126585]
[1765996949506,0.01844,86335.0,86310.0,0.71649883]
[1765996949728,1.0,86340.0,86311.0,0.09714061]
[1765996949940,1.0,86340.0,86312.0,0.01844]
[1765996950150,1.0,86340.0,86313.0,0.03325]
[1765996950365,1.0,86340.0,86313.0,0.03416688]
[1765996950579,1.0,86344.0,86313.0,0.03416688]
[1765996950787,1.0,86344.0,86314.0,0.09483877]
[1765996950997,1.0,86344.0,86320.0,0.71523298]
[1765996951200,1.0,86344.0,86320.0,0.00126585]
[1765996951403,0.9681,86339.0,86320.0,0.71649883]
[1765996951607,0.0907,86338.0,86321.0,0.07164988]
[1765996951813,0.0907,86338.0,86321.0,0.07291573]
[1765996952022,0.0907,86338.0,86321.0,0.00126585]
[1765996952449,0.08340718,86345.0,86321.0,0.00126585]
[1765996952661,1.0,86344.0,86321.0,0.00126585]
[1765996952883,0.001,86339.0,86321.0,0.00126585]
[1765996953086,0.00134702,86339.0,86321.0,0.00126585]
[1765996953945,0.09104702,86339.0,86308.0,0.00051917]
[1765996954140,0.0907,86326.0,86308.0,0.00051917]
[1765996954341,0.0907,86322.0,86308.0,0.00178502]
[1765996955184,0.09104702,86322.0,86308.0,0.00178502]
[1765996955392,0.00034702,86322.0,86309.0,0.01844]
[1765996955604,0.00134702,86322.0,86308.0,0.00051917]
[1765996955830,0.69285,86320.0,86310.0,0.01844]
[1765996956031,0.60799718,86317.0,86308.0,0.00051917]
[1765996956243,0.6083442,86317.0,86308.0,0.00051917]
[1765996956452,0.00034702,86317.0,86308.0,0.00051917]
[1765996956661,0.17410718,86330.0,86309.0,0.01809]
[1765996956662,0.08340718,86330.0,86309.0,0.01809]
[1765996956841,0.08340718,86330.0,86309.0,0.01970287]
[1765996957268,0.69285,86319.0,86308.0,0.00151917]
[1765996957473,0.52459,86315.0,86304.0,0.01844]
[1765996957857,0.69285,86316.0,86304.0,0.01844]
[1765996959080,0.69385,86316.0,86303.0,0.01844]
[1765996959509,0.001,86316.0,86303.0,0.01844]
[1765996960279,0.52459,86322.0,86303.0,0.01844]
[1765996960483,1.0,86321.0,86303.0,0.01844]
[1765996960709,1.0,86321.0,86303.0,0.02005287]
[1765996960914,0.0907,86323.0,86304.0,0.01961]
[1765996961119,1.0,86322.0,86304.0,0.01961]
[1765996961767,1.0,86320.0,86304.0,0.01961]
[1765996961991,0.001,86321.0,86304.0,0.02122287]
[1765996962196,0.08340718,86330.0,86310.0,0.71523298]
[1765996962394,0.001,86322.0,86311.0,0.01961]
[1765996962601,0.08340718,86330.0,86311.0,0.02122287]
[1765996963581,0.0907,86334.0,86311.0,0.02122287]
[1765996963769,0.0907,86334.0,86312.0,0.01861]
[1765996963899,0.001,86320.0,86313.0,0.07354558]
[1765996964104,0.001,86320.0,86313.0,0.00161287]
[1765996964303,0.001,86320.0,86313.0,0.02005287]
[1765996964542,0.74469,86328.0,86313.0,0.02005287]
[1765996964749,0.08340718,86329.0,86313.0,0.02005287]
[1765996964960,0.98238,86336.0,86319.0,0.71523298]
[1765996965188,1.0,86343.0,86320.0,0.0715233]
[1765996965412,0.0907,86343.0,86320.0,0.07313617]
[1765996965613,1.0,86340.0,86320.0,0.07313617]
[1765996965761,1.0,86340.0,86320.0,0.71684585]
[1765996966365,0.0907,86341.0,86330.0,0.71523298]
[1765996966614,0.17410718,86345.0,86330.0,0.01844]
[1765996967587,0.17410718,86345.0,86330.0,0.01809108]
[1765996967814,0.08340718,86345.0,86330.0,0.73332406]
[1765996967961,0.0907,86342.0,86331.0,0.07333241]
[1765996968167,1.35536,86342.0,86331.0,0.01844]
[1765996968371,1.35536,86342.0,86320.0,0.71684585]
[1765996968372,0.0907,86342.0,86320.0,0.71684585]
[1765996968567,0.0907,86342.0,86320.0,0.00124466]
[1765996968568,1.0,86341.0,86320.0,0.00124466]
[1765996968778,1.26466,86336.0,86292.0,0.01158855]
[1765996968982,0.0907,86333.0,86310.0,0.71523298]
[1765996969181,1.0,86332.0,86311.0,0.01844]
[1765996969599,0.0907,86329.0,86310.0,0.71523298]
[1765996969798,0.0907,86327.0,86310.0,0.71523298]
[1765996970019,0.0907,86327.0,86311.0,0.0733673]
[1765996970774,0.0003831,86321.0,86311.0,0.0733673]
[1765996970985,0.08340718,86331.0,86293.0,0.01065846]
[1765996970986,0.0907,86327.0,86293.0,0.01065846]
[1765996971185,0.00025541,86317.0,86294.0,0.01844]
[1765996971358,0.00025541,86317.0,86294.0,0.01968466]
[1765996971557,0.00025541,86317.0,86295.0,0.07455761]
[1765996971766,0.00025541,86317.0,86295.0,0.07580227]
[1765996971967,0.00025541,86317.0,86296.0,0.01844]
[1765996972181,0.00062362,86317.0,86296.0,0.01844]
[1765996972384,0.00062362,86317.0,86297.0,0.01844]
[1765996972385,0.0907,86313.0,86297.0,0.01844]
[1765996972635,0.0907,86313.0,86298.0,0.01844]
[1765996972636,1.0,86312.0,86298.0,0.01844]
[1765996972843,0.00036821,86312.0,86298.0,0.01844]
[1765996973046,0.52033821,86312.0,86298.0,0.01844]
[1765996973261,0.784973,86311.0,86285.0,0.00496294]
[1765996973466,0.0907,86305.0,86285.0,0.00496294]
[1765996973686,0.00036821,86305.0,86285.0,0.00496294]
[1765996973912,0.00036821,86305.0,86266.0,0.04280205]
[1765996973913,0.00036821,86286.0,86266.0,0.03121]
[1765996974144,0.51997,86271.0,86241.0,0.04188712]
[1765996974364,0.51997,86271.0,86234.0,0.06185809]
[1765996974365,0.00036821,86243.0,86220.0,0.05223379]
[1765996974577,0.00036821,86243.0,86201.0,0.08340718]
[1765996974578,0.51997,86227.0,86191.0,0.04163847]
[1765996974788,0.00036821,86230.0,86184.0,0.06189809]
[1765996974789,0.00036821,86230.0,86184.0,4e-05]
[1765996974790,0.74469,86217.0,86184.0,4e-05]
[1765996975002,0.0907,86213.0,86184.0,4e-05]
[1765996975225,0.74469,86210.0,86184.0,4e-05]
[1765996975438,1.0,86206.0,86184.0,4e-05]
[1765996975657,0.74469,86205.0,86184.0,4e-05]
[1765996975885,0.00036821,86206.0,86192.0,0.07763929]
[1765996976293,1.0,86205.0,86192.0,0.07763929]
[1765996976752,0.00036821,86206.0,86192.0,0.07763929]
[1765996976753,1.0,86201.0,86192.0,0.07763929]
[1765996976965,1.0,86201.0,86192.0,0.07639463]
[1765996977209,1.0,86226.0,86200.0,0.00124466]
[1765996977413,1.26466,86223.0,86200.0,0.00124466]
[1765996977640,0.001,86205.0,86200.0,0.00124466]
[1765996977852,0.74469,86209.0,86192.0,0.07639463]
[1765996978138,0.05001839,86224.0,86192.0,0.07639463]
[1765996978139,0.01852,86215.0,86200.0,0.00124466]
[1765996978354,1.0,86214.0,86200.0,0.00124466]
[1765996978565,1.0,86231.0,86200.0,1.3976119]
[1765996978767,1.0,86223.0,86201.0,0.34502]
[1765996978978,0.51997,86234.0,86201.0,0.34502]
[1765996978979,1.0,86239.0,86211.0,0.34502]
[1765996979184,0.0889311,86261.0,86202.0,0.11546078]
[1765996979185,0.02894351,86254.0,86230.0,0.34502]
[1765996979392,0.08340718,86263.0,86230.0,0.34502]
[1765996979393,0.51997,86270.0,86240.0,1.05134724]
[1765996979595,0.03485334,86271.0,86245.0,0.34502]
[1765996979816,1.0,86284.0,86247.0,0.34502]
[1765996980024,1.26466,86283.0,86247.0,0.34626466]
[1765996980227,1.0,86277.0,86250.0,1.39636724]
[1765996980444,1.0,86277.0,86260.0,1.05134724]
[1765996980679,0.08340718,86278.0,86260.0,1.05134724]
[1765996980680,0.02846747,86290.0,86261.0,0.36354]
[1765996980892,0.02846747,86290.0,86260.0,1.0525919]
[1765996980893,1.0,86276.0,86260.0,0.00124466]
[1765996981099,1.0,86276.0,86222.0,0.01159796]
[1765996981100,1.26466,86271.0,86222.0,0.01159796]
[1765996981306,1.0,86261.0,86240.0,1.05134724]
[1765996981508,0.08340718,86262.0,86250.0,1.05134724]
[1765996981713,0.08340718,86262.0,86250.0,0.01976466]
[1765996981980,0.08340718,86262.0,86250.0,1.0711119]
[1765996982205,0.08340718,86262.0,86231.0,0.01993747]
[1765996982206,0.51997,86259.0,86231.0,0.00834072]
[1765996982404,1.0,86255.0,86234.0,0.01852]
[1765996982598,1.0,86254.0,86234.0,0.01852]
[1765996982820,0.00036821,86254.0,86240.0,1.05134724]
[1765996983020,0.00036821,86254.0,86240.0,0.00124466]
[1765996983336,0.00036821,86254.0,86240.0,0.001]
[1765996983565,0.0907,86250.0,86220.0,1.05134724]
[1765996983856,1.0,86243.0,86221.0,0.01856]
[1765996984056,0.0907,86240.0,86221.0,0.01980466]
[1765996984262,0.0907,86236.0,86222.0,0.01856]
[1765996984433,0.0907,86234.0,86222.0,0.01856]
[1765996984616,1.0,86233.0,86184.0,0.23210139]
[1765996984818,0.08340718,86222.0,86201.0,0.00124466]
[1765996985049,0.08377539,86222.0,86201.0,0.00124466]
[1765996985248,0.08377539,86222.0,86221.0,9.7e-07]
[1765996985663,0.08377539,86222.0,86192.0,0.08799663]
[1765996985664,0.83684293,86222.0,86200.0,1.05134724]
[1765996985901,0.83684293,86222.0,86192.0,0.07639463]
[1765996985902,1.0,86219.0,86192.0,0.07639463]
[1765996986023,1.0,86216.0,86193.0,0.01856]
[1765996986219,0.09215293,86222.0,86200.0,1.05134724]
[1765996986220,1.0,86221.0,86200.0,1.05134724]
[1765996986424,1.0,86221.0,86213.0,0.00025587]
[1765996986624,1.0,86221.0,86200.0,1.05134724]
[1765996986834,0.0907,86217.0,86192.0,0.07639463]
[1765996987041,1.0907,86212.0,86192.0,0.07639463]
[1765996987269,0.08429505,86222.0,86174.0,0.0188]
[1765996987270,1.0,86209.0,86174.0,0.0188]
[1765996987480,1.0,86209.0,86180.0,1.05134724]
[1765996987693,1.0,86209.0,86186.0,0.00024]
[1765996987900,0.01856,86211.0,86174.0,0.01856]
[1765996987901,1.26466,86205.0,86174.0,0.01856]
[1765996988107,0.08340718,86191.0,86180.0,1.05134724]
[1765996988335,0.0907,86220.0,86190.0,0.01124466]
[1765996988543,0.0907,86216.0,86190.0,0.01124466]
[1765996988745,1.03117618,86215.0,86190.0,0.01124466]
[1765996988960,1.0,86212.0,86190.0,0.01]
[1765996989197,0.08340718,86191.0,86190.0,0.01124466]
[1765996989858,0.08340718,86191.0,86190.0,0.01]
[1765996990862,0.08340718,86191.0,86190.0,0.012]
[1765996991111,0.08340718,86191.0,86190.0,0.01124466]
[1765996991397,0.08340718,86204.0,86190.0,0.01124466]
[1765996991811,0.08340718,86204.0,86175.0,0.01160429]
[1765996991812,0.0907,86189.0,86151.0,4e-05]
[1765996992014,0.08816603,86191.0,86141.0,4e-05]
[1765996992015,0.0907,86186.0,86141.0,4e-05]
[1765996992216,0.01856,86188.0,86112.0,0.01403534]
[1765996992217,1.0,86185.0,86150.0,1.05134724]
[1765996992420,0.08816603,86191.0,86151.0,0.01392903]
[1765996992421,1.742,86182.0,86151.0,0.01392903]
[1765996992624,1.0,86181.0,86152.0,0.11070921]
[1765996993202,0.08816603,86153.0,86152.0,0.11070921]
[1765996993531,0.08812603,86153.0,86152.0,0.11266174]
[1765996993758,0.08812603,86153.0,86110.0,0.001043]
[1765996993979,0.49981,86150.0,86110.0,4.301e-05]
[1765996994187,1.0907,86148.0,86110.0,4.301e-05]
[1765996994394,0.0907,86142.0,86110.0,4.301e-05]
[1765996994599,1.0907,86135.0,86110.0,4.301e-05]
[1765996994828,0.742,86128.0,86110.0,4.301e-05]
[1765996995042,1.0,86126.0,86110.0,4.301e-05]
[1765996995266,1.0,86126.0,86100.0,0.009291]
[1765996995267,0.00161287,86111.0,86100.0,0.009291]
[1765996995476,1.0,86125.0,86000.0,30.10740822]
[1765996995477,0.00161287,86101.0,86075.0,0.01161777]
[1765996995684,0.00161287,86101.0,86077.0,0.04278033]
[1765996995685,0.08315572,86101.0,86077.0,0.04278033]
[1765996995905,0.08315572,86101.0,86081.0,0.2323393]
[1765996996143,0.08315572,86101.0,86090.0,1.05134724]
[1765996996341,0.08315572,86101.0,86091.0,0.10513472]
[1765996996548,0.0907,86123.0,86091.0,0.10674759]
[1765996996756,0.09288285,86102.0,86100.0,1.05134724]
[1765996996967,0.09288285,86102.0,86100.0,0.00161287]
[1765996997247,0.09288285,86102.0,86101.0,0.00161287]
[1765996997460,1.0,86120.0,86101.0,0.00161287]
[1765996997688,1.0,86119.0,86101.0,0.00161287]
[1765996997896,0.01835829,86120.0,86066.0,0.24399621]
[1765996997897,0.59051,86113.0,86094.0,0.01872]
[1765996998099,0.0907,86105.0,86094.0,0.01872]
[1765996998303,0.09288285,86095.0,86080.0,0.01872]
[1765996998516,0.09288285,86095.0,86080.0,0.00161287]
[1765996998818,1.742,86094.0,86080.0,0.00161287]
[1765996999026,1.0,86089.0,86077.0,0.01872]
[1765996999299,1.49981,86089.0,86067.0,0.02752923]
[1765996999512,1.0,86088.0,86067.0,0.00880923]
[1765996999740,0.09288285,86095.0,86068.0,0.01872]
[1765996999964,1.0,86092.0,86068.0,0.01872]
[1765997000212,1.0,86092.0,86070.0,1.05134724]
[1765997000425,1.0,86092.0,86067.0,0.00880923]
[1765997000578,1.0,86092.0,86071.0,0.01872]
[1765997000788,0.001,86088.0,86071.0,0.01872]
[1765997001368,1.0,86123.0,86078.0,1.05134724]
[1765997001738,1.0,86123.0,86074.0,0.09288285]
[1765997001739,1.0,86126.0,86100.0,1.05134724]
[1765997001942,0.76072,86130.0,86074.0,0.09288285]
[1765997002180,0.742,86119.0,86075.0,0.01872]
[1765997002375,0.001,86092.0,86074.0,0.09288285]
[1765997002613,0.49981,86104.0,86076.0,0.01872]
[1765997002820,1.0,86106.0,86080.0,0.0116171]
[1765997003020,1.0,86106.0,86067.0,0.00880923]
[1765997003021,1.24181,86103.0,86070.0,1.05134724]
[1765997003306,1.0,86097.0,86067.0,0.00880923]
[1765997003453,0.0917,86092.0,86067.0,0.00880923]
[1765997003690,0.0907,86087.0,86067.0,0.00880923]
[1765997003890,0.49981,86082.0,86067.0,0.00880923]
[1765997004094,0.49981,86082.0,86053.0,0.01162074]
[1765997004095,0.0907,86080.0,86031.0,0.01066894]
[1765997004298,0.05001839,86075.0,86031.0,0.00161287]
[1765997004502,0.0907,86071.0,86031.0,0.00161287]
[1765997004700,0.0907,86068.0,86036.0,0.24408151]
[1765997004923,0.25099999,86100.0,86036.0,0.24408151]
[1765997004924,1.0,86065.0,86037.0,0.0116229]
[1765997005131,0.0907,86078.0,86037.0,0.00161287]
[1765997005330,0.0907,86076.0,86037.0,0.05351516]
[1765997005511,0.0907,86072.0,86037.0,0.05351516]
[1765997005895,0.0907,86068.0,86042.0,0.34848]
[1765997006099,1.24181,86077.0,86043.0,0.01876]
[1765997006364,1.0,86078.0,86043.0,0.01876]
[1765997006365,1.0,86070.0,86043.0,0.00161287]
[1765997006581,0.0907,86074.0,86045.0,0.51741]
[1765997006816,0.0907,86074.0,86048.0,0.51741]
[1765997007074,0.07902291,86068.0,86048.0,0.00161287]
[1765997007310,0.07902291,86068.0,86030.0,1.29544804]
[1765997007311,0.0907,86066.0,86027.0,0.01876]
[1765997007512,0.742,86059.0,86021.0,0.03038506]
[1765997007717,1.0,86064.0,86021.0,0.01838655]
[1765997007918,0.49981,86060.0,86021.0,0.01838655]
[1765997008048,1.0,86059.0,86021.0,0.01838655]
[1765997008252,0.08366159,86046.0,86010.0,4.344e-05]
[1765997008458,1.0,86043.0,86013.0,0.02865092]
[1765997008686,1.24181,86042.0,86010.0,4.344e-05]
[1765997008837,1.0,86040.0,86011.0,0.23252801]
[1765997009050,1.0,86045.0,86019.0,0.23250474]
[1765997009241,1.0,86045.0,86016.0,0.08557]
[1765997009462,1.0,86045.0,86018.0,0.01162547]
[1765997009683,1.0,86045.0,86017.0,0.1013748]
[1765997010356,1.0,86045.0,86019.0,0.001]
[1765997010478,1.0,86045.0,86017.0,0.0158048]
[1765997010685,0.49981,86043.0,86012.0,0.0376]